[Event "*** Titled Tuesday Blitz"]
[Site "Chess.com"]
[Date "2021.04.06"]
[Round "8"]
[White "Tekushka"]
[Black "MasterMK73"]
[Result "1-0"]
[WhiteElo "2407"]
[BlackElo "2282"]
[TimeControl "180+1"]
[EndTime "11:28:32 PDT"]
[Termination "Tekushka won on time"]

1. e4 {[%clk 0:03:00.9]} 1... c5 {[%clk 0:02:58.4]} 2. Nf3 {[%clk 0:03:00.6]}
2... a6 {[%clk 0:02:57.2]} 3. c3 {[%clk 0:02:58.2]} 3... g6 {[%clk 0:02:54.5]}
4. d4 {[%clk 0:02:57.2]} 4... cxd4 {[%clk 0:02:50.2]} 5. cxd4 {[%clk 0:02:56.9]}
5... d5 {[%clk 0:02:48.9]} 6. exd5 {[%clk 0:02:55.6]} 6... Nf6 {[%clk
0:02:47.6]} 7. Nc3 {[%clk 0:02:52.3]} 7... Bg7 {[%clk 0:02:46.5]} 8. Bc4 {[%clk
0:02:43.3]} 8... b5 {[%clk 0:02:41.4]} 9. Bb3 {[%clk 0:02:42.3]} 9... Bb7 {[%clk
0:02:40.5]} 10. O-O {[%clk 0:02:41.3]} 10... O-O {[%clk 0:02:40.3]} 11. Bg5
{[%clk 0:02:36.6]} 11... Re8 {[%clk 0:02:31.2]} 12. Re1 {[%clk 0:02:36.4]} 12...
b4 {[%clk 0:02:16.5]} 13. Na4 {[%clk 0:02:33]} 13... Nxd5 {[%clk 0:01:57.5]} 14.
Nc5 {[%clk 0:02:19.3]} 14... Bc6 {[%clk 0:01:57.1]} 15. Ne5 {[%clk 0:02:05.6]}
15... h6 {[%clk 0:01:48.7]} 16. Bh4 {[%clk 0:01:50.2]} 16... Qd6 {[%clk
0:01:20.8]} 17. Rc1 {[%clk 0:01:35]} 17... e6 {[%clk 0:01:12.1]} 18. Qf3 {[%clk
0:01:13.3]} 18... Rf8 {[%clk 0:00:52.4]} 19. Ne4 {[%clk 0:01:04.3]} 19... Qc7
{[%clk 0:00:35]} 20. Bxd5 {[%clk 0:00:53.3]} 20... exd5 {[%clk 0:00:31.8]} 21.
Nf6+ {[%clk 0:00:53.5]} 21... Kh8 {[%clk 0:00:29.5]} 22. Qg3 {[%clk 0:00:42.5]}
22... Qb7 {[%clk 0:00:22.5]} 23. Qxg6 {[%clk 0:00:31.7]} 1-0

[Event "*** Titled Tuesday Blitz"]
[Site "Chess.com"]
[Date "2021.04.06"]
[Round "8"]
[White "Ermito2020"]
[Black "DeTimmerman"]
[Result "0-1"]
[WhiteElo "2578"]
[BlackElo "2843"]
[TimeControl "180+1"]
[EndTime "11:28:35 PDT"]
[Termination "DeTimmerman won on time"]

1. e4 {[%clk 0:03:00.6]} 1... e5 {[%clk 0:02:59.6]} 2. Nf3 {[%clk 0:03:00.5]}
2... Nc6 {[%clk 0:02:59.3]} 3. d4 {[%clk 0:03:00.8]} 3... exd4 {[%clk
0:03:00.2]} 4. Bc4 {[%clk 0:03:01.1]} 4... Nf6 {[%clk 0:03:00.7]} 5. O-O {[%clk
0:03:01.1]} 5... Nxe4 {[%clk 0:03:00.8]} 6. Re1 {[%clk 0:03:01.6]} 6... d5
{[%clk 0:03:01.5]} 7. Bxd5 {[%clk 0:03:02.2]} 7... Qxd5 {[%clk 0:03:02.3]} 8.
Nc3 {[%clk 0:03:03.1]} 8... Qh5 {[%clk 0:03:02.7]} 9. Nxe4 {[%clk 0:03:03]} 9...
Be6 {[%clk 0:03:03.4]} 10. Bg5 {[%clk 0:03:02.7]} 10... h6 {[%clk 0:03:04]} 11.
Bf6 {[%clk 0:03:02.6]} 11... Qg6 {[%clk 0:03:04.7]} 12. Nh4 {[%clk 0:02:47.9]}
12... Qg4 {[%clk 0:03:03.4]} 13. Qd3 {[%clk 0:02:17.1]} 13... Qh5 {[%clk
0:02:53.2]} 14. a3 {[%clk 0:00:58.8]} 14... a6 {[%clk 0:02:49.6]} 15. b4 {[%clk
0:00:58.1]} 15... Qb5 {[%clk 0:02:49]} 16. c4 {[%clk 0:00:53.4]} 16... dxc3
{[%clk 0:02:45.9]} 17. Qxc3 {[%clk 0:00:51.7]} 17... Rg8 {[%clk 0:02:44.3]} 18.
Rad1 {[%clk 0:00:46.3]} 18... a5 {[%clk 0:02:39.6]} 19. bxa5 {[%clk 0:00:31.2]}
19... Qxa5 {[%clk 0:02:40.5]} 20. Qc2 {[%clk 0:00:31.2]} 20... Bxa3 {[%clk
0:02:35.6]} 21. Rb1 {[%clk 0:00:29.2]} 21... gxf6 {[%clk 0:02:27.6]} 22. Nxf6+
{[%clk 0:00:28.8]} 22... Ke7 {[%clk 0:02:28.2]} 23. Nxg8+ {[%clk 0:00:25.9]}
23... Rxg8 {[%clk 0:02:29.1]} 24. Nf5+ {[%clk 0:00:23.5]} 24... Kf8 {[%clk
0:02:25]} 25. Nxh6 {[%clk 0:00:21.8]} 25... Rg6 {[%clk 0:02:21.1]} 26. Nxf7
{[%clk 0:00:18.9]} 26... Bxf7 {[%clk 0:02:19.8]} 27. g3 {[%clk 0:00:19.1]} 27...
Rf6 {[%clk 0:02:12.1]} 28. Re4 {[%clk 0:00:18.4]} 28... Bg6 {[%clk 0:02:09.8]}
29. Rxb7 {[%clk 0:00:17.2]} 29... Nd4 {[%clk 0:01:51.4]} 30. Rb8+ {[%clk
0:00:15]} 30... Kg7 {[%clk 0:01:50.3]} 31. Qc4 {[%clk 0:00:14.2]} 31... Nf3+
{[%clk 0:01:41]} 32. Kg2 {[%clk 0:00:13.3]} 32... Bf7 {[%clk 0:01:13.5]} 33.
Rg4+ {[%clk 0:00:11.4]} 33... Ng5 {[%clk 0:01:14.1]} 34. Qd4 {[%clk 0:00:08.8]}
34... Qd5+ {[%clk 0:01:10.3]} 35. Qxd5 {[%clk 0:00:08.9]} 35... Bxd5+ {[%clk
0:01:11.2]} 36. Kg1 {[%clk 0:00:09.5]} 36... Rg6 {[%clk 0:01:09]} 37. h4 {[%clk
0:00:08.7]} 37... Nf3+ {[%clk 0:01:08]} 38. Kf1 {[%clk 0:00:08.6]} 38... Rxg4
{[%clk 0:01:08.6]} 0-1

[Event "*** Titled Tuesday Blitz"]
[Site "Chess.com"]
[Date "2021.04.06"]
[Round "8"]
[White "PotapovaM"]
[Black "CakeinSpace2002"]
[Result "0-1"]
[WhiteElo "2466"]
[BlackElo "2340"]
[TimeControl "180+1"]
[EndTime "11:28:38 PDT"]
[Termination "CakeinSpace2002 won by checkmate"]

1. e4 {[%clk 0:02:41.3]} 1... c5 {[%clk 0:02:56.8]} 2. Nf3 {[%clk 0:02:41.6]}
2... Nc6 {[%clk 0:02:57]} 3. Bb5 {[%clk 0:02:41.2]} 3... g6 {[%clk 0:02:56.8]}
4. Bxc6 {[%clk 0:02:41]} 4... dxc6 {[%clk 0:02:56.4]} 5. O-O {[%clk 0:02:40.8]}
5... Bg7 {[%clk 0:02:56.4]} 6. h3 {[%clk 0:02:39.6]} 6... Qc7 {[%clk 0:02:56.4]}
7. d3 {[%clk 0:02:40.1]} 7... e5 {[%clk 0:02:55.1]} 8. Be3 {[%clk 0:02:39.7]}
8... b6 {[%clk 0:02:55]} 9. Nbd2 {[%clk 0:02:39.6]} 9... Ne7 {[%clk 0:02:54.7]}
10. Nc4 {[%clk 0:02:39.7]} 10... O-O {[%clk 0:02:54.6]} 11. a3 {[%clk
0:02:40.4]} 11... Be6 {[%clk 0:02:54.2]} 12. b4 {[%clk 0:02:36.2]} 12... Rad8
{[%clk 0:02:52.6]} 13. Qe2 {[%clk 0:02:35.1]} 13... h6 {[%clk 0:02:42.4]} 14.
bxc5 {[%clk 0:02:32.8]} 14... b5 {[%clk 0:02:42.3]} 15. Nd6 {[%clk 0:02:26.4]}
15... a5 {[%clk 0:02:28.4]} 16. Qd2 {[%clk 0:02:22.2]} 16... Kh7 {[%clk
0:02:27.5]} 17. h4 {[%clk 0:02:13.4]} 17... f5 {[%clk 0:02:20]} 18. Bg5 {[%clk
0:02:07.4]} 18... fxe4 {[%clk 0:02:04.8]} 19. dxe4 {[%clk 0:02:06.2]} 19... Bc4
{[%clk 0:02:02.5]} 20. Bxe7 {[%clk 0:01:55]} 20... Qxe7 {[%clk 0:02:02.9]} 21.
Rfe1 {[%clk 0:01:54.5]} 21... Rf4 {[%clk 0:01:40.9]} 22. Qxa5 {[%clk 0:01:45.2]}
22... Rxf3 {[%clk 0:01:31.9]} 23. gxf3 {[%clk 0:01:17.4]} 23... Qxh4 {[%clk
0:01:31]} 24. Qd2 {[%clk 0:01:10.7]} 24... h5 {[%clk 0:01:21.1]} 25. f4 {[%clk
0:00:49.6]} 25... Qg4+ {[%clk 0:01:14.3]} 26. Kh1 {[%clk 0:00:39]} 26... Qf3+
{[%clk 0:00:58.6]} 27. Kg1 {[%clk 0:00:39]} 27... exf4 {[%clk 0:00:54.3]} 28.
Rab1 {[%clk 0:00:23.8]} 28... Qg4+ {[%clk 0:00:52.1]} 29. Kh1 {[%clk 0:00:23.5]}
29... f3 {[%clk 0:00:49]} 30. Kh2 {[%clk 0:00:03.3]} 30... Be5+ {[%clk 0:00:48]}
31. Kh1 {[%clk 0:00:02.9]} 31... Qg2# {[%clk 0:00:47.8]} 0-1

[Event "*** Titled Tuesday Blitz"]
[Site "Chess.com"]
[Date "2021.04.06"]
[Round "8"]
[White "steka121"]
[Black "Airquake"]
[Result "0-1"]
[WhiteElo "2366"]
[BlackElo "2676"]
[TimeControl "180+1"]
[EndTime "11:28:40 PDT"]
[Termination "Airquake won by resignation"]

1. e4 {[%clk 0:02:59.6]} 1... c5 {[%clk 0:02:59.9]} 2. b3 {[%clk 0:02:59.8]}
2... Nc6 {[%clk 0:02:59.7]} 3. Bb2 {[%clk 0:02:59.7]} 3... e6 {[%clk 0:02:59.8]}
4. Nf3 {[%clk 0:02:58.7]} 4... d5 {[%clk 0:02:59.6]} 5. Bb5 {[%clk 0:02:58.5]}
5... Ne7 {[%clk 0:02:58.1]} 6. Ne5 {[%clk 0:02:49.9]} 6... Qb6 {[%clk
0:02:44.1]} 7. Qe2 {[%clk 0:02:39.8]} 7... dxe4 {[%clk 0:02:36.7]} 8. Na3 {[%clk
0:02:33.4]} 8... a6 {[%clk 0:02:21.4]} 9. Bxc6+ {[%clk 0:02:04.7]} 9... Nxc6
{[%clk 0:02:20.7]} 10. Qxe4 {[%clk 0:02:02.7]} 10... Nxe5 {[%clk 0:02:16]} 11.
Qxe5 {[%clk 0:02:03]} 11... Bd7 {[%clk 0:02:09]} 12. Nc4 {[%clk 0:01:58]} 12...
Qc6 {[%clk 0:02:08.5]} 13. O-O-O {[%clk 0:01:51.1]} 13... Qxg2 {[%clk
0:01:58.9]} 14. Rhg1 {[%clk 0:01:37.1]} 14... Qc6 {[%clk 0:01:58.6]} 15. Rxg7
{[%clk 0:01:33.7]} 15... Bxg7 {[%clk 0:01:58.4]} 16. Qxg7 {[%clk 0:01:06.9]}
16... O-O-O {[%clk 0:01:56.3]} 17. Be5 {[%clk 0:01:07.1]} 17... f6 {[%clk
0:01:33.4]} 18. Qxf6 {[%clk 0:01:01.3]} 18... Rdf8 {[%clk 0:01:21.4]} 19. Qe7
{[%clk 0:00:57.7]} 19... Rhg8 {[%clk 0:01:16.5]} 20. d4 {[%clk 0:00:31.2]} 20...
b5 {[%clk 0:01:16.5]} 21. Nd6+ {[%clk 0:00:28.1]} 21... Kb8 {[%clk 0:01:16.8]}
22. dxc5 {[%clk 0:00:25.2]} 22... Ka8 {[%clk 0:01:15.8]} 23. Nxb5 {[%clk
0:00:20.2]} 23... Rd8 {[%clk 0:00:57.5]} 24. Nc7+ {[%clk 0:00:13.1]} 24... Kb7
{[%clk 0:00:57.4]} 25. Rd6 {[%clk 0:00:12]} 25... Qxc5 {[%clk 0:00:38.1]} 26.
Rxd7 {[%clk 0:00:12.3]} 26... Rg1+ {[%clk 0:00:37.6]} 27. Kb2 {[%clk 0:00:12.1]}
27... Qxe5+ {[%clk 0:00:37.6]} 28. c3 {[%clk 0:00:10.6]} 28... Rxd7 {[%clk
0:00:33.1]} 29. Qxd7 {[%clk 0:00:10]} 29... Qxc7 {[%clk 0:00:33.7]} 0-1

[Event "*** Titled Tuesday Blitz"]
[Site "Chess.com"]
[Date "2021.04.06"]
[Round "8"]
[White "Cryptochess"]
[Black "KacperPolOK"]
[Result "0-1"]
[WhiteElo "2539"]
[BlackElo "2422"]
[TimeControl "180+1"]
[EndTime "11:28:41 PDT"]
[Termination "KacperPolOK won by resignation"]

1. e4 {[%clk 0:03:00.9]} 1... c5 {[%clk 0:03:00.1]} 2. Nf3 {[%clk 0:03:00.4]}
2... Nc6 {[%clk 0:02:57.8]} 3. d4 {[%clk 0:03:00.5]} 3... cxd4 {[%clk
0:02:57.2]} 4. Nxd4 {[%clk 0:03:01.4]} 4... e5 {[%clk 0:02:57.1]} 5. Nb5 {[%clk
0:03:00.8]} 5... d6 {[%clk 0:02:57.5]} 6. c4 {[%clk 0:02:59.9]} 6... Be7 {[%clk
0:02:56.3]} 7. Be3 {[%clk 0:02:59.6]} 7... Be6 {[%clk 0:02:43.9]} 8. Be2 {[%clk
0:02:58.4]} 8... a6 {[%clk 0:02:43.7]} 9. N5c3 {[%clk 0:02:58.4]} 9... Bg5
{[%clk 0:02:44.3]} 10. Bxg5 {[%clk 0:02:43.7]} 10... Qxg5 {[%clk 0:02:43.9]} 11.
O-O {[%clk 0:02:35.3]} 11... Nge7 {[%clk 0:02:37.2]} 12. Nd2 {[%clk 0:02:29.3]}
12... Nd4 {[%clk 0:02:32.8]} 13. Nf3 {[%clk 0:02:24.7]} 13... Nxf3+ {[%clk
0:02:30.8]} 14. Bxf3 {[%clk 0:02:25.2]} 14... Rd8 {[%clk 0:02:29]} 15. Nd5
{[%clk 0:02:21]} 15... O-O {[%clk 0:02:17.6]} 16. Qb3 {[%clk 0:02:16.8]} 16...
Ng6 {[%clk 0:01:52.1]} 17. g3 {[%clk 0:02:10.2]} 17... f5 {[%clk 0:01:52]} 18.
Qxb7 {[%clk 0:01:56.4]} 18... f4 {[%clk 0:01:35.3]} 19. Qxa6 {[%clk 0:01:32.7]}
19... Bh3 {[%clk 0:01:25.9]} 20. Bg2 {[%clk 0:01:09.9]} 20... Bxg2 {[%clk
0:01:24.4]} 21. Kxg2 {[%clk 0:01:10.8]} 21... Nh4+ {[%clk 0:01:17]} 22. Kh1
{[%clk 0:01:00.1]} 22... Nf3 {[%clk 0:01:01.4]} 23. Rg1 {[%clk 0:00:46.8]} 23...
Nxg1 {[%clk 0:00:49.3]} 24. Rxg1 {[%clk 0:00:47.7]} 24... fxg3 {[%clk 0:00:42]}
25. fxg3 {[%clk 0:00:22.3]} 25... Rf2 {[%clk 0:00:34.6]} 26. Qb6 {[%clk
0:00:15.8]} 26... Rdf8 {[%clk 0:00:32.9]} 27. Qe3 {[%clk 0:00:13.6]} 27... Qh5
{[%clk 0:00:26.5]} 28. h4 {[%clk 0:00:11.5]} 28... Qg4 {[%clk 0:00:21.3]} 0-1

[Event "*** Titled Tuesday Blitz"]
[Site "Chess.com"]
[Date "2021.04.06"]
[Round "8"]
[White "xozr"]
[Black "yobdc"]
[Result "0-1"]
[WhiteElo "2365"]
[BlackElo "2517"]
[TimeControl "180+1"]
[EndTime "11:28:45 PDT"]
[Termination "yobdc won by resignation"]

1. e4 {[%clk 0:03:00.9]} 1... e6 {[%clk 0:02:59.7]} 2. d3 {[%clk 0:02:58.8]}
2... c5 {[%clk 0:02:59.1]} 3. Nd2 {[%clk 0:02:59.7]} 3... Nc6 {[%clk 0:02:58.9]}
4. Ngf3 {[%clk 0:03:00]} 4... g6 {[%clk 0:02:58.9]} 5. g3 {[%clk 0:03:00.5]}
5... Bg7 {[%clk 0:02:59.2]} 6. Bg2 {[%clk 0:03:01.1]} 6... Nge7 {[%clk
0:02:59.2]} 7. O-O {[%clk 0:03:01.2]} 7... O-O {[%clk 0:02:59.4]} 8. Re1 {[%clk
0:03:01.4]} 8... d6 {[%clk 0:02:59.5]} 9. c3 {[%clk 0:03:00.1]} 9... e5 {[%clk
0:02:59.6]} 10. Nf1 {[%clk 0:02:59.2]} 10... h6 {[%clk 0:02:58.7]} 11. Nh4
{[%clk 0:02:55.5]} 11... g5 {[%clk 0:02:53.1]} 12. Nf3 {[%clk 0:02:52]} 12... f5
{[%clk 0:02:51.8]} 13. exf5 {[%clk 0:02:52.1]} 13... Bxf5 {[%clk 0:02:43.2]} 14.
h4 {[%clk 0:02:51.7]} 14... g4 {[%clk 0:02:28.8]} 15. N3h2 {[%clk 0:02:50.3]}
15... h5 {[%clk 0:02:18.9]} 16. Bg5 {[%clk 0:02:49.8]} 16... Qd7 {[%clk
0:02:15.5]} 17. Ne3 {[%clk 0:02:49.3]} 17... Be6 {[%clk 0:02:08.7]} 18. c4
{[%clk 0:02:27.2]} 18... Rf7 {[%clk 0:02:01]} 19. Nd5 {[%clk 0:02:22.9]} 19...
Nf5 {[%clk 0:01:44.8]} 20. Be4 {[%clk 0:02:17]} 20... Raf8 {[%clk 0:01:42.5]}
21. Nxg4 {[%clk 0:02:02.9]} 21... hxg4 {[%clk 0:01:41.2]} 22. Qxg4 {[%clk
0:02:03.8]} 22... Nh6 {[%clk 0:01:24]} 23. Qh5 {[%clk 0:02:01]} 23... Bg4 {[%clk
0:01:21.3]} 24. Qg6 {[%clk 0:01:59.7]} 24... Bf5 {[%clk 0:01:18.3]} 25. Qh5
{[%clk 0:01:25.1]} 25... Qe6 {[%clk 0:01:04]} 26. Ne3 {[%clk 0:01:09.6]} 26...
Bxe4 {[%clk 0:00:59.1]} 27. dxe4 {[%clk 0:01:10.5]} 27... Nd4 {[%clk 0:00:51.9]}
28. f4 {[%clk 0:01:05.2]} 28... exf4 {[%clk 0:00:45.7]} 29. gxf4 {[%clk
0:00:59]} 29... Qxe4 {[%clk 0:00:18.5]} 30. Bxh6 {[%clk 0:00:51.8]} 30... Bxh6
{[%clk 0:00:18.1]} 31. Qxh6 {[%clk 0:00:50.9]} 31... Rg7+ {[%clk 0:00:18.3]} 32.
Kh2 {[%clk 0:00:49.1]} 32... Rxf4 {[%clk 0:00:10.5]} 33. Rg1 {[%clk 0:00:43]}
33... Rf2+ {[%clk 0:00:09.3]} 34. Kh3 {[%clk 0:00:32.6]} 34... Qf3+ {[%clk
0:00:07.8]} 0-1

[Event "*** Titled Tuesday Blitz"]
[Site "Chess.com"]
[Date "2021.04.06"]
[Round "8"]
[White "Redzishchess"]
[Black "vrekhson"]
[Result "0-1"]
[WhiteElo "2330"]
[BlackElo "2233"]
[TimeControl "180+1"]
[EndTime "11:28:46 PDT"]
[Termination "vrekhson won by resignation"]

1. d4 {[%clk 0:03:00.9]} 1... Nf6 {[%clk 0:02:59.2]} 2. Bf4 {[%clk 0:03:01.4]}
2... c5 {[%clk 0:02:57.8]} 3. e3 {[%clk 0:03:01.3]} 3... d5 {[%clk 0:02:57.6]}
4. c3 {[%clk 0:03:00.6]} 4... e6 {[%clk 0:02:58]} 5. Nd2 {[%clk 0:03:00.4]} 5...
Qb6 {[%clk 0:02:58.3]} 6. Qb3 {[%clk 0:02:59]} 6... Nc6 {[%clk 0:02:57.9]} 7.
Ngf3 {[%clk 0:02:54.4]} 7... Be7 {[%clk 0:02:57.8]} 8. Bd3 {[%clk 0:02:44.6]}
8... c4 {[%clk 0:02:56.2]} 9. Qxb6 {[%clk 0:02:44.3]} 9... axb6 {[%clk
0:02:57.1]} 10. Bc2 {[%clk 0:02:44.6]} 10... b5 {[%clk 0:02:57.3]} 11. Ke2
{[%clk 0:02:40.1]} 11... b4 {[%clk 0:02:57.4]} 12. e4 {[%clk 0:02:25.2]} 12...
bxc3 {[%clk 0:02:56.5]} 13. bxc3 {[%clk 0:02:24.6]} 13... O-O {[%clk 0:02:51.9]}
14. a4 {[%clk 0:02:21.6]} 14... Nd7 {[%clk 0:02:30.4]} 15. Rhb1 {[%clk
0:02:13.2]} 15... Na5 {[%clk 0:02:28.2]} 16. Rb5 {[%clk 0:01:53]} 16... Nf6
{[%clk 0:02:01.5]} 17. Bc7 {[%clk 0:01:35.9]} 17... Bd8 {[%clk 0:01:50.8]} 18.
Bxd8 {[%clk 0:01:16.5]} 18... Rxd8 {[%clk 0:01:51.7]} 19. Ne5 {[%clk 0:01:16.9]}
19... Nd7 {[%clk 0:01:40.9]} 20. f4 {[%clk 0:00:35.9]} 20... Nxe5 {[%clk
0:01:39.5]} 21. fxe5 {[%clk 0:00:36.8]} 21... f6 {[%clk 0:01:29.1]} 22. exf6
{[%clk 0:00:28.7]} 22... gxf6 {[%clk 0:01:30]} 23. Rf1 {[%clk 0:00:29]} 23...
Kg7 {[%clk 0:01:28.3]} 24. exd5 {[%clk 0:00:25.2]} 24... exd5 {[%clk 0:01:29.2]}
25. Rb6 {[%clk 0:00:25.6]} 25... Re8+ {[%clk 0:01:22.4]} 26. Kd1 {[%clk
0:00:24.1]} 26... Re6 {[%clk 0:01:19.3]} 27. Rb5 {[%clk 0:00:17]} 27... Rd6
{[%clk 0:01:12.5]} 28. Nf3 {[%clk 0:00:16.7]} 28... Nb3 {[%clk 0:01:02.8]} 29.
Bxb3 {[%clk 0:00:16.5]} 29... cxb3 {[%clk 0:01:02.9]} 30. Rxb3 {[%clk
0:00:14.6]} 30... Rxa4 {[%clk 0:01:02.9]} 31. Kc2 {[%clk 0:00:08.4]} 31... Bf5+
{[%clk 0:00:57.5]} 32. Kb2 {[%clk 0:00:08.6]} 32... Rda6 {[%clk 0:00:55.3]} 33.
Rxb7+ {[%clk 0:00:08]} 33... Kf8 {[%clk 0:00:53.9]} 34. Ne5 {[%clk 0:00:05.5]}
34... Ra2+ {[%clk 0:00:52.7]} 35. Kb3 {[%clk 0:00:06]} 35... Bc2+ {[%clk
0:00:44.4]} 36. Kb4 {[%clk 0:00:06.5]} 36... Rb2+ {[%clk 0:00:39.9]} 37. Kc5
{[%clk 0:00:07]} 37... Rxb7 {[%clk 0:00:38.6]} 38. Rxf6+ {[%clk 0:00:07.9]}
38... Rxf6 {[%clk 0:00:37.6]} 0-1

[Event "*** Titled Tuesday Blitz"]
[Site "Chess.com"]
[Date "2021.04.06"]
[Round "8"]
[White "onnoelgersma"]
[Black "Meri-Arabidze"]
[Result "0-1"]
[WhiteElo "2419"]
[BlackElo "2633"]
[TimeControl "180+1"]
[EndTime "11:28:47 PDT"]
[Termination "Meri-Arabidze won by resignation"]

1. d4 {[%clk 0:03:00.9]} 1... d5 {[%clk 0:03:00]} 2. Nf3 {[%clk 0:03:01]} 2...
Nf6 {[%clk 0:03:00]} 3. Bg5 {[%clk 0:03:01.4]} 3... Ne4 {[%clk 0:02:59]} 4. Bf4
{[%clk 0:03:01.6]} 4... c5 {[%clk 0:02:59.2]} 5. c3 {[%clk 0:03:01.2]} 5... Nc6
{[%clk 0:02:58.8]} 6. e3 {[%clk 0:03:01.5]} 6... Bg4 {[%clk 0:02:59]} 7. h3
{[%clk 0:02:45.9]} 7... Bh5 {[%clk 0:02:58.1]} 8. Be2 {[%clk 0:02:46.3]} 8... e6
{[%clk 0:02:57.8]} 9. Nbd2 {[%clk 0:02:46.2]} 9... f5 {[%clk 0:02:56.2]} 10. g4
{[%clk 0:01:53]} 10... Bg6 {[%clk 0:02:54.3]} 11. Ne5 {[%clk 0:01:45]} 11...
Nxe5 {[%clk 0:02:53.8]} 12. Bxe5 {[%clk 0:01:45.9]} 12... Qd7 {[%clk 0:02:38.7]}
13. f3 {[%clk 0:01:37.7]} 13... Nxd2 {[%clk 0:02:37.9]} 14. Qxd2 {[%clk
0:01:38.6]} 14... Bd6 {[%clk 0:02:38]} 15. Bb5 {[%clk 0:01:29]} 15... Qxb5
{[%clk 0:02:37]} 16. Bxd6 {[%clk 0:01:28.9]} 16... c4 {[%clk 0:02:29.5]} 17. Be5
{[%clk 0:01:28.3]} 17... fxg4 {[%clk 0:02:25]} 18. hxg4 {[%clk 0:01:24.7]} 18...
Qd7 {[%clk 0:02:19.4]} 19. f4 {[%clk 0:01:20.5]} 19... Be4 {[%clk 0:02:17.2]}
20. Rg1 {[%clk 0:01:20.3]} 20... O-O-O {[%clk 0:02:17.2]} 21. g5 {[%clk
0:01:11.2]} 21... Rhg8 {[%clk 0:02:12.8]} 22. b4 {[%clk 0:00:55.4]} 22... h5
{[%clk 0:02:11.7]} 23. gxh6 {[%clk 0:00:48]} 23... gxh6 {[%clk 0:02:11.7]} 24.
O-O-O {[%clk 0:00:48.6]} 24... h5 {[%clk 0:02:10.7]} 25. Qh2 {[%clk 0:00:43]}
25... Qa4 {[%clk 0:02:06.8]} 26. Kb2 {[%clk 0:00:41.5]} 26... h4 {[%clk
0:02:01.2]} 27. f5 {[%clk 0:00:35.1]} 27... Bxf5 {[%clk 0:01:51.7]} 28. Bc7
{[%clk 0:00:31.5]} 28... Rdf8 {[%clk 0:01:44.6]} 29. Bb8 {[%clk 0:00:30.2]}
29... Qc6 {[%clk 0:01:38.5]} 30. Bxa7 {[%clk 0:00:29.4]} 30... Kd7 {[%clk
0:01:11.5]} 31. Bc5 {[%clk 0:00:25.8]} 31... Ra8 {[%clk 0:01:04.1]} 32. Rxg8
{[%clk 0:00:18.6]} 32... Rxg8 {[%clk 0:01:05]} 33. Rg1 {[%clk 0:00:18.8]} 33...
Rxg1 {[%clk 0:00:57.3]} 34. Qxg1 {[%clk 0:00:19.7]} 34... Qa4 {[%clk 0:00:57.1]}
35. Qg7+ {[%clk 0:00:19.1]} 35... Kc6 {[%clk 0:00:56.6]} 36. Qg2 {[%clk
0:00:11.2]} 36... Qd1 {[%clk 0:00:56.3]} 37. Qh2 {[%clk 0:00:11]} 37... Qb1+
{[%clk 0:00:55.8]} 38. Ka3 {[%clk 0:00:10.6]} 38... Qc1+ {[%clk 0:00:55]} 39.
Qb2 {[%clk 0:00:10.6]} 39... Qxb2+ {[%clk 0:00:54.7]} 40. Kxb2 {[%clk
0:00:11.5]} 40... h3 {[%clk 0:00:55.3]} 41. b5+ {[%clk 0:00:11.7]} 41... Kd7
{[%clk 0:00:54.6]} 42. e4 {[%clk 0:00:11.8]} 42... h2 {[%clk 0:00:51.7]} 0-1

[Event "*** Titled Tuesday Blitz"]
[Site "Chess.com"]
[Date "2021.04.06"]
[Round "8"]
[White "eljanov"]
[Black "Artem_Sadovsky"]
[Result "1-0"]
[WhiteElo "2862"]
[BlackElo "2639"]
[TimeControl "180+1"]
[EndTime "11:28:51 PDT"]
[Termination "eljanov won on time"]

1. d4 {[%clk 0:03:00.9]} 1... g6 {[%clk 0:02:58.2]} 2. e4 {[%clk 0:02:59.7]}
2... Bg7 {[%clk 0:02:58.2]} 3. Nc3 {[%clk 0:03:00.2]} 3... c6 {[%clk 0:02:57.1]}
4. Nf3 {[%clk 0:02:57.5]} 4... d5 {[%clk 0:02:56.7]} 5. h3 {[%clk 0:02:57.7]}
5... dxe4 {[%clk 0:02:56.5]} 6. Nxe4 {[%clk 0:02:57.8]} 6... Nf6 {[%clk
0:02:57.2]} 7. Nxf6+ {[%clk 0:02:57.9]} 7... exf6 {[%clk 0:02:58.1]} 8. Be2
{[%clk 0:02:54.2]} 8... O-O {[%clk 0:02:59]} 9. O-O {[%clk 0:02:54.5]} 9... Re8
{[%clk 0:02:59.7]} 10. Be3 {[%clk 0:02:48.5]} 10... Be6 {[%clk 0:02:57.9]} 11.
c4 {[%clk 0:02:46]} 11... a5 {[%clk 0:02:53.8]} 12. Qc2 {[%clk 0:02:42]} 12...
Na6 {[%clk 0:02:51.9]} 13. Rad1 {[%clk 0:02:40.1]} 13... Nb4 {[%clk 0:02:43.6]}
14. Qb3 {[%clk 0:02:39.7]} 14... b5 {[%clk 0:02:36.9]} 15. a3 {[%clk 0:02:34.4]}
15... bxc4 {[%clk 0:02:35.5]} 16. Bxc4 {[%clk 0:02:35.3]} 16... Bxc4 {[%clk
0:02:16.4]} 17. Qxc4 {[%clk 0:02:35]} 17... Qd5 {[%clk 0:02:17.2]} 18. Rc1
{[%clk 0:02:31.7]} 18... Qxc4 {[%clk 0:01:48.2]} 19. Rxc4 {[%clk 0:02:32.6]}
19... Nd5 {[%clk 0:01:49.1]} 20. Bd2 {[%clk 0:02:33]} 20... a4 {[%clk
0:01:38.3]} 21. Rfc1 {[%clk 0:02:26.8]} 21... Reb8 {[%clk 0:01:37.2]} 22. R1c2
{[%clk 0:02:23.9]} 22... Bf8 {[%clk 0:01:04.3]} 23. Rxc6 {[%clk 0:02:23.3]}
23... Rb7 {[%clk 0:01:04.8]} 24. Ne1 {[%clk 0:02:19.8]} 24... Kg7 {[%clk
0:00:58.8]} 25. Nd3 {[%clk 0:02:10.8]} 25... Rab8 {[%clk 0:00:47.8]} 26. Nf4
{[%clk 0:02:00]} 26... Ne7 {[%clk 0:00:37.5]} 27. Rc7 {[%clk 0:01:46.4]} 27...
Rxc7 {[%clk 0:00:37.9]} 28. Rxc7 {[%clk 0:01:47.3]} 28... Rxb2 {[%clk
0:00:38.6]} 29. Bb4 {[%clk 0:01:47.6]} 29... Rb1+ {[%clk 0:00:20.3]} 30. Kh2
{[%clk 0:01:47]} 30... g5 {[%clk 0:00:11.4]} 31. Nh5+ {[%clk 0:01:45.8]} 31...
Kg6 {[%clk 0:00:11.6]} 32. Bxe7 {[%clk 0:01:40.4]} 32... Bxe7 {[%clk 0:00:12.5]}
33. Rxe7 {[%clk 0:01:40.3]} 33... Kxh5 {[%clk 0:00:13]} 34. Rxf7 {[%clk
0:01:40.7]} 34... Kg6 {[%clk 0:00:09.1]} 35. Ra7 {[%clk 0:01:40.4]} 35... Rb2
{[%clk 0:00:07.9]} 36. f3 {[%clk 0:01:36.7]} 36... Rd2 {[%clk 0:00:07.3]} 37.
Rxa4 {[%clk 0:01:36.5]} 37... Rd3 {[%clk 0:00:06.5]} 38. Kg1 {[%clk 0:01:36.8]}
38... h5 {[%clk 0:00:04.2]} 39. Kf1 {[%clk 0:01:35.2]} 39... Rd2 {[%clk
0:00:04.4]} 40. Rb4 {[%clk 0:01:34.9]} 40... Ra2 {[%clk 0:00:04.2]} 41. a4
{[%clk 0:01:34.9]} 41... Kf5 {[%clk 0:00:04.8]} 42. Rb5+ {[%clk 0:01:20.3]}
42... Kf4 {[%clk 0:00:04.9]} 43. a5 {[%clk 0:01:20]} 43... Kg3 {[%clk
0:00:04.1]} 44. d5 {[%clk 0:01:20.3]} 44... Ra1+ {[%clk 0:00:03]} 45. Ke2 {[%clk
0:01:20.2]} 45... Kxg2 {[%clk 0:00:01.8]} 46. d6 {[%clk 0:01:20.5]} 46... Ra2+
{[%clk 0:00:01.3]} 47. Ke3 {[%clk 0:01:18.8]} 47... Ra3+ {[%clk 0:00:01.8]} 48.
Ke4 {[%clk 0:01:19.1]} 48... Ra1 {[%clk 0:00:01.2]} 49. d7 {[%clk 0:01:18.4]}
49... Re1+ {[%clk 0:00:02.1]} 50. Kd5 {[%clk 0:01:17.1]} 50... Rd1+ {[%clk
0:00:03]} 51. Kc6 {[%clk 0:01:17.4]} 51... Rc1+ {[%clk 0:00:02.3]} 52. Rc5
{[%clk 0:01:17.7]} 1-0